[Event "35th European Club Cup 2019"]
[Site "Ulcinj"]
[Date "2019.11.15"]
[Round "6.8"]
[White "Gretarsson, Helgi Ass"]
[Black "Perunovic, Milos"]
[Result "0-1"]
[ECO "E32"]
[WhiteElo "2415"]
[BlackElo "2578"]
[Annotator "ChessBase"]
[PlyCount "78"]
[EventDate "2019.11.10"]
[EventType "team-tourn"]
[EventCountry "MNE"]
[SourceTitle "playchess.com"]
[Source "ChessBase"]
[SourceQuality "1"]
[WhiteTeam "Reykjavik CC"]
[BlackTeam "Sloven Ruma"]
[TimeControl "40/5400+30:1800+30"]

1. d4 {[%emt 0:00:00]} Nf6 {[%emt 0:00:00]} 2. c4 {[%emt 0:00:00]} e6 {[%emt 0:01:19]} 3. Nc3 {[%emt 0:00:00]} Bb4 {[%emt 0:00:20]} 4. Qc2 {[%emt 0:00:00]} b6 {[%emt 0:03:18]} 5. e4 {[%emt 0:04:30]} c5 {[%emt 0:00:26]} 6. d5 {[%emt 0:00:19]} Qe7 {[%emt 0:03:45]} 7. Nge2 {[%emt 0:00:14]} exd5 {[%emt 0:01:29]} 8. exd5 {[%emt 0:00:13]} O-O {[%emt 0:19:47]} 9. Bd2 {[%emt 0:25:31]} d6 {[%emt 0:00:19]} 10. f3 {[%emt 0:00:24]} Nbd7 {[%emt 0:16:37]} 11. O-O-O {[%emt 0:01:34]} a6 {[%emt 0:06:31]} 12. Ng3 {[%emt 0:11:21]} Qd8 {[%emt 0:00:35]} 13. Bf4 {[%emt 0:08:11]} Ne5 {[%emt 0:01:37]} 14. Nce4 {[%emt 0:14:39]} Nxe4 {[%emt 0:01:51]} 15. Nxe4 {[%emt 0:00:04]} Re8 {[%emt 0:04:56]} 16. g4 {[%emt 0:10:40]} b5 {[%emt 0:17:10]} 17. a3 {[%emt 0:04:52]} Ba5 {[%emt 0:00:15]} 18. Bxe5 {[%emt 0:00:00]} Rxe5 {[%emt 0:00:37]} 19. cxb5 {[%emt 0:00:17]} axb5 {[%emt 0:01:34]} 20. Bxb5 {[%emt 0:00:06]} Rb8 {[%emt 0:02:48]} 21. Qc4 f5 {[%emt 0:03:14]} 22. gxf5 {[%emt 0:05:24]} Bxf5 {[%emt 0:00:04]} 23. Rhg1 {[%emt 0:02:05]} Qh4 {[%emt 0:03:05]} 24. Qa4 {[%emt 0:00:07]} Bd8 {[%emt 0:02:44]} 25. Kb1 {[%emt 0:07:09]} Bf6 {[%emt 0:01:10]} 26. Rge1 {[%emt 0:02:27]} Qxh2 {[%emt 0:02:39]} 27. Re2 {[%emt 0:00:04]} Qh3 {[%emt 0:02:26]} 28. Ka2 {[%emt 0:00:37]} Bxe4 {[%emt 0:00:41]} 29. fxe4 {[%emt 0:00:05]} Re7 {[%emt 0:00:42]} 30. Qc4 {[%emt 0:00:13]} Be5 {[%emt 0:00:38]} 31. a4 {[%emt 0:00:09]} h5 {[%emt 0:00:18]} 32. Rd3 {[%emt 0:02:16]} Qf1 {[%emt 0:00:38]} 33. Qc2 {[%emt 0:00:40]} Rf7 {[%emt 0:01:41]} 34. Ra3 {[%emt 0:00:13]} h4 {[%emt 0:00:26]} 35. Rg2 {[%emt 0:01:02]} Qh1 {[%emt 0:00:22]} 36. Rg5 {[%emt 0:00:38]} Bd4 {[%emt 0:00:28]} 37. Qg2 {[%emt 0:00:31]} Rf2 {[%emt 0:00:43]} 38. Qxh1 {[%emt 0:01:49]} Rxb2+ {[%emt 0:00:05]} 39. Ka1 {[%emt 0:00:01]} R2xb5+ {[%emt 0:00:13]} 0-1

[Event "35th European Club Cup 2019"]
[Site "Ulcinj"]
[Date "2019.11.15"]
[Round "6.9"]
[White "Kosic, Dragan"]
[Black "Ezat, Mohamed"]
[Result "1/2-1/2"]
[ECO "A48"]
[WhiteElo "2477"]
[BlackElo "2452"]
[Annotator "ChessBase"]
[PlyCount "62"]
[EventDate "2019.11.10"]
[EventType "team-tourn"]
[EventCountry "MNE"]
[SourceTitle "playchess.com"]
[Source "ChessBase"]
[SourceQuality "1"]
[WhiteTeam "Sloven Ruma"]
[BlackTeam "Reykjavik CC"]
[TimeControl "40/5400+30:1800+30"]

1. d4 {[%emt 0:00:00]} Nf6 {[%emt 0:00:00]} 2. Nf3 {[%emt 0:00:00]} g6 {[%emt 0:00:00]} 3. Bg5 {[%emt 0:00:00]} Bg7 {[%emt 0:02:03]} 4. Nbd2 {[%emt 0:02:10]} c5 {[%emt 0:02:25]} 5. e3 {[%emt 0:00:11]} cxd4 {[%emt 0:07:08]} 6. exd4 {[%emt 0:00:06]} d5 {[%emt 0:00:23]} 7. Bd3 {[%emt 0:00:12]} Nc6 {[%emt 0:00:20]} 8. c3 {[%emt 0:00:04]} h6 {[%emt 0:01:17]} 9. Bh4 {[%emt 0:01:06]} Nh5 {[%emt 0:01:46]} 10. O-O {[%emt 0:00:09]} O-O {[%emt 0:03:54]} 11. Re1 {[%emt 0:00:39]} Qd6 {[%emt 0:07:44]} 12. Bg3 {[%emt 0:03:40]} Nxg3 {[%emt 0:00:12]} 13. hxg3 {[%emt 0:00:05]} e5 {[%emt 0:00:40]} 14. dxe5 {[%emt 0:01:24]} Nxe5 {[%emt 0:00:07]} 15. Nxe5 {[%emt 0:00:06]} Bxe5 {[%emt 0:00:10]} 16. Nf3 {[%emt 0:00:30]} Bg7 {[%emt 0:00:06]} 17. Bc4 {[%emt 0:03:17]} Be6 {[%emt 0:14:55]} 18. Bb3 {[%emt 0:01:09]} a5 {[%emt 0:02:15]} 19. Nd4 {[%emt 0:00:37]} Bd7 {[%emt 0:01:55]} 20. a4 {[%emt 0:02:54]} Qc5 {[%emt 0:17:16]} 21. Qd2 {[%emt 0:15:48]} Rfe8 {[%emt 0:06:30]} 22. Rad1 {[%emt 0:05:10]} Bc6 {[%emt 0:00:31]} 23. Nb5 {[%emt 0:06:11]} Rxe1+ {[%emt 0:04:25]} 24. Rxe1 {[%emt 0:00:19]} Rd8 {[%emt 0:02:50]} 25. Qd3 {[%emt 0:00:16]} Bf6 {[%emt 0:00:56]} 26. Rd1 {[%emt 0:10:07]} Kg7 {[%emt 0:00:55]} 27. Nd4 {[%emt 0:06:49]} Re8 {[%emt 0:01:44]} 28. Kf1 {[%emt 0:01:15]} h5 {[%emt 0:03:16]} 29. Re1 {[%emt 0:06:20]} Rxe1+ {[%emt 0:06:32]} 30. Kxe1 {[%emt 0:00:09]} Bxd4 {[%emt 0:00:22]} 31. Qxd4+ {[%emt 0:00:08]} Qxd4 {[%emt 0:00:06]} 1/2-1/2

[Event "35th European Club Cup 2019"]
[Site "Ulcinj"]
[Date "2019.11.15"]
[Round "6.9"]
[White "Mikhalchishin, Adrian"]
[Black "Papp, Gabor"]
[Result "0-1"]
[ECO "D51"]
[WhiteElo "2467"]
[BlackElo "2589"]
[Annotator "ChessBase"]
[PlyCount "98"]
[EventDate "2019.11.10"]
[EventType "team-tourn"]
[EventCountry "MNE"]
[SourceTitle "playchess.com"]
[Source "ChessBase"]
[SourceQuality "1"]
[WhiteTeam "Maribor"]
[BlackTeam "Koge SK"]
[TimeControl "40/5400+30:1800+30"]

1. d4 {[%emt 0:00:00]} Nf6 {[%emt 0:00:00]} 2. c4 {[%emt 0:00:00]} e6 {[%emt 0:00:00]} 3. Nf3 {[%emt 0:00:02]} d5 {[%emt 0:00:00]} 4. Nc3 {[%emt 0:00:36]} Nbd7 {[%emt 0:00:00]} 5. Bg5 {[%emt 0:01:24]} h6 {[%emt 0:00:10]} 6. Bh4 {[%emt 0:00:15]} c6 {[%emt 0:00:14]} 7. e3 {[%emt 0:00:50]} g5 {[%emt 0:00:08]} 8. Bg3 {[%emt 0:00:06]} Nh5 {[%emt 0:00:06]} 9. Qc2 {[%emt 0:12:49]} Nxg3 {[%emt 0:00:46]} 10. hxg3 {[%emt 0:00:32]} Bg7 {[%emt 0:00:20]} 11. O-O-O {[%emt 0:01:36]} Qe7 {[%emt 0:01:00]} 12. Kb1 {[%emt 0:09:07]} Nb6 {[%emt 0:20:34]} 13. Ne5 {[%emt 0:13:48]} dxc4 {[%emt 0:11:11]} 14. f4 {[%emt 0:02:36]} Bd7 {[%emt 0:05:21]} 15. Ne4 {[%emt 0:02:04]} Nd5 {[%emt 0:08:26]} 16. Qf2 {[%emt 0:08:04]} gxf4 {[%emt 0:08:15]} 17. gxf4 {[%emt 0:09:44]} c3 {[%emt 0:01:57]} 18. Nxc3 {[%emt 0:09:04]} Nxc3+ {[%emt 0:03:47]} 19. bxc3 {[%emt 0:00:06]} O-O-O {[%emt 0:00:10]} 20. Qb2 {[%emt 0:03:42]} Be8 {[%emt 0:01:33]} 21. Qb4 {[%emt 0:07:12]} Qxb4+ {[%emt 0:02:35]} 22. cxb4 {[%emt 0:00:03]} f6 {[%emt 0:00:06]} 23. Nf3 {[%emt 0:01:36]} e5 {[%emt 0:00:16]} 24. Bc4 {[%emt 0:04:08]} Bg6+ {[%emt 0:05:21]} 25. Kb2 {[%emt 0:00:11]} exf4 {[%emt 0:00:09]} 26. Be6+ {[%emt 0:01:32]} Kc7 {[%emt 0:00:06]} 27. exf4 {[%emt 0:00:01]} Be4 {[%emt 0:05:00]} 28. f5 {[%emt 0:02:40]} Bf8 {[%emt 0:00:08]} 29. a3 {[%emt 0:00:55]} a5 {[%emt 0:03:10]} 30. bxa5 {[%emt 0:03:09]} Ra8 {[%emt 0:02:06]} 31. Nd2 {[%emt 0:00:56]} Bxg2 {[%emt 0:00:07]} 32. Rhg1 {[%emt 0:00:06]} Bd5 {[%emt 0:00:15]} 33. Bxd5 {[%emt 0:00:20]} cxd5 {[%emt 0:00:06]} 34. Rc1+ {[%emt 0:01:31]} Kd7 {[%emt 0:03:50]} 35. Nb3 {[%emt 0:00:25]} Rc8 {[%emt 0:00:11]} 36. Rcf1 {[%emt 0:03:34]} Re8 {[%emt 0:07:30]} 37. Rf2 {[%emt 0:00:46]} h5 {[%emt 0:01:38]} 38. Rg6 {[%emt 0:01:41]} h4 {[%emt 0:02:06]} 39. Nc5+ {[%emt 0:00:24]} Kc8 {[%emt 0:05:34]} 40. Rc2 {[%emt 0:00:00]} Bxc5 {[%emt 0:00:00]} 41. Rxc5+ {[%emt 0:07:58]} Kb8 {[%emt 0:06:34]} 42. Rxf6 {[%emt 0:00:29]} h3 {[%emt 0:06:08]} 43. Rc1 {[%emt 0:00:41]} h2 {[%emt 0:00:56]} 44. Rh1 {[%emt 0:00:56]} Rh3 {[%emt 0:05:50]} 45. Rb6 {[%emt 0:02:51]} Re2+ {[%emt 0:00:28]} 46. Kb1 {[%emt 0:00:02]} Rg3 {[%emt 0:05:51]} 47. Rg6 {[%emt 0:01:15]} Rge3 {[%emt 0:00:05]} 48. Re6 {[%emt 0:01:30]} Rxe6 {[%emt 0:00:30]} 49. fxe6 {[%emt 0:00:04]} Kc7 {[%emt 0:00:25]} 0-1

[Event "35th European Club Cup 2019"]
[Site "Ulcinj"]
[Date "2019.11.15"]
[Round "6.9"]
[White "Pobor, Danilo"]
[Black "Cvitan, Ognjen"]
[Result "0-1"]
[ECO "D02"]
[WhiteElo "2041"]
[BlackElo "2490"]
[Annotator "ChessBase"]
[PlyCount "68"]
[EventDate "2019.11.10"]
[EventType "team-tourn"]
[EventCountry "MNE"]
[SourceTitle "playchess.com"]
[Source "ChessBase"]
[SourceQuality "1"]
[WhiteTeam "Crnogorac"]
[BlackTeam "Riehen SG"]
[TimeControl "40/5400+30:1800+30"]

1. d4 Nf6 2. Nf3 d5 3. Bf4 c5 4. e3 Nc6 5. c3 Qb6 6. Qb3 c4 7. Qxb6 axb6 8. Na3 Ra5 9. Nd2 Bf5 10. Bc7 e6 11. Naxc4 dxc4 12. Nxc4 Ra7 13. Bxb6 Ra8 14. f3 Be7 15. Bc7 O-O 16. e4 Bg6 17. Nb6 Ra7 18. Bf4 Bd8 19. Nc4 b5 20. Na3 b4 21. Nb5 Rd7 22. Be3 bxc3 23. bxc3 Ba5 24. Kf2 Rc8 25. Be2 Bxe4 26. fxe4 Nxe4+ 27. Kf3 Nxc3 28. a4 e5 29. d5 Rxd5 30. Bc4 Rdd8 31. Rhc1 e4+ 32. Kf4 Ne7 33. Nxc3 Rxc4 34. Ne2 Nd5+ 0-1

[Event "35th European Club Cup 2019"]
[Site "Ulcinj"]
[Date "2019.11.15"]
[Round "6.10"]
[White "Sengupta, Deep"]
[Black "Mohr, Georg"]
[Result "1-0"]
[ECO "C03"]
[WhiteElo "2557"]
[BlackElo "2437"]
[Annotator "ChessBase"]
[PlyCount "63"]
[EventDate "2019.11.10"]
[EventType "team-tourn"]
[EventCountry "MNE"]
[SourceTitle "playchess.com"]
[Source "ChessBase"]
[SourceQuality "1"]
[WhiteTeam "Koge SK"]
[BlackTeam "Maribor"]
[TimeControl "40/5400+30:1800+30"]

1. e4 {[%emt 0:00:00]} e6 {[%emt 0:09:29]} 2. d4 {[%emt 0:00:00]} d5 {[%emt 0:00:05]} 3. Nd2 {[%emt 0:00:00]} Ne7 {[%emt 0:04:02]} 4. Ngf3 {[%emt 0:01:20]} g6 {[%emt 0:02:56]} 5. h4 {[%emt 0:05:27]} h6 {[%emt 0:01:03]} 6. e5 {[%emt 0:02:34]} Bg7 {[%emt 0:03:51]} 7. Bd3 {[%emt 0:01:51]} c5 {[%emt 0:02:12]} 8. c3 {[%emt 0:00:04]} Nbc6 {[%emt 0:01:28]} 9. Nf1 {[%emt 0:07:34]} cxd4 {[%emt 0:06:01]} 10. cxd4 {[%emt 0:00:05]} Qb6 {[%emt 0:01:00]} 11. Ne3 {[%emt 0:02:04]} Bd7 {[%emt 0:00:47]} 12. Nc2 {[%emt 0:05:13]} Nb4 {[%emt 0:10:33]} 13. Nxb4 {[%emt 0:01:17]} Qxb4+ {[%emt 0:00:06]} 14. Bd2 {[%emt 0:01:58]} Qb6 {[%emt 0:01:54]} 15. a4 {[%emt 0:02:02]} Qxb2 {[%emt 0:11:34]} 16. O-O {[%emt 0:04:43]} Qb6 {[%emt 0:01:59]} 17. a5 {[%emt 0:04:19]} Qd8 {[%emt 0:04:59]} 18. Qb1 {[%emt 0:05:26]} Bc6 {[%emt 0:02:56]} 19. a6 {[%emt 0:04:49]} Rb8 {[%emt 0:03:18]} 20. Qc1 {[%emt 0:00:41]} Qd7 {[%emt 0:03:37]} 21. Bb4 {[%emt 0:03:58]} O-O {[%emt 0:08:35]} 22. Nh2 {[%emt 0:07:20]} Rfc8 {[%emt 0:07:35]} 23. Bd6 {[%emt 0:00:50]} Ra8 {[%emt 0:00:42]} 24. Ng4 {[%emt 0:05:32]} Nf5 {[%emt 0:00:26]} 25. Qf4 {[%emt 0:19:44]} Nxd6 {[%emt 0:05:47]} 26. exd6 {[%emt 0:00:02]} f5 {[%emt 0:01:17]} 27. Nxh6+ {[%emt 0:01:52]} Kh7 {[%emt 0:01:24]} 28. Ng4 {[%emt 0:00:03]} fxg4 {[%emt 0:00:19]} 29. Qxg4 {[%emt 0:00:01]} Qf7 {[%emt 0:03:13]} 30. Rae1 {[%emt 0:02:18]} bxa6 {[%emt 0:01:03]} 31. Rxe6 {[%emt 0:00:37]} Kh8 32. Bxg6 {[%emt 0:00:41]} 1-0

[Event "35th European Club Cup 2019"]
[Site "Ulcinj"]
[Date "2019.11.15"]
[Round "6.10"]
[White "Georgiadis, Ioannis"]
[Black "Pobor, Milo"]
[Result "1-0"]
[ECO "A05"]
[WhiteElo "2491"]
[BlackElo "2064"]
[Annotator "ChessBase"]
[PlyCount "73"]
[EventDate "2019.11.10"]
[EventType "team-tourn"]
[EventCountry "MNE"]
[SourceTitle "playchess.com"]
[Source "ChessBase"]
[SourceQuality "1"]
[WhiteTeam "Riehen SG"]
[BlackTeam "Crnogorac"]
[TimeControl "40/5400+30:1800+30"]

1. Nf3 {[%emt 0:00:00]} Nf6 {[%emt 0:02:38]} 2. b3 d6 3. Bb2 {[%emt 0:08:35]} e5 {[%emt 0:02:23]} 4. c4 {[%emt 0:00:16]} g6 {[%emt 0:00:46]} 5. g3 {[%emt 0:00:51]} Bg7 {[%emt 0:00:24]} 6. Bg2 {[%emt 0:00:16]} O-O {[%emt 0:00:16]} 7. O-O {[%emt 0:03:15]} Nc6 {[%emt 0:04:58]} 8. Nc3 {[%emt 0:05:25]} Nh5 {[%emt 0:04:43]} 9. e3 {[%emt 0:29:45]} f5 {[%emt 0:09:00]} 10. Ne1 {[%emt 0:05:36]} f4 {[%emt 0:06:50]} 11. Nd5 {[%emt 0:21:38]} fxg3 {[%emt 0:06:32]} 12. hxg3 {[%emt 0:00:44]} Be6 {[%emt 0:00:51]} 13. d4 {[%emt 0:07:17]} Qd7 14. dxe5 {[%emt 0:03:44]} Nxe5 {[%emt 0:06:13]} 15. Qd2 {[%emt 0:01:24]} Bh3 {[%emt 0:03:21]} 16. Nf4 {[%emt 0:02:10]} Bxg2 {[%emt 0:01:00]} 17. Kxg2 {[%emt 0:00:17]} Qg4 {[%emt 0:02:35]} 18. Nxh5 {[%emt 0:01:10]} Qxh5 {[%emt 0:03:53]} 19. Bxe5 {[%emt 0:00:51]} Qxe5 {[%emt 0:02:07]} 20. Rd1 {[%emt 0:00:30]} a5 {[%emt 0:02:26]} 21. Nd3 {[%emt 0:00:53]} Qf6 {[%emt 0:01:47]} 22. Nf4 {[%emt 0:00:45]} Kh8 {[%emt 0:00:58]} 23. Qd5 {[%emt 0:00:33]} Ra7 {[%emt 0:02:40]} 24. a4 {[%emt 0:00:45]} Qf5 {[%emt 0:01:10]} 25. Ne6 {[%emt 0:01:20]} Qxd5+ {[%emt 0:00:19]} 26. cxd5 {[%emt 0:01:13]} Rf7 {[%emt 0:01:59]} 27. Rc1 {[%emt 0:01:34]} b6 {[%emt 0:00:04]} 28. Rc2 {[%emt 0:00:46]} Re7 {[%emt 0:04:12]} 29. Rfc1 {[%emt 0:00:28]} Rxe6 {[%emt 0:00:08]} 30. dxe6 {[%emt 0:00:05]} c5 {[%emt 0:00:04]} 31. Rd1 {[%emt 0:00:10]} Bf8 {[%emt 0:00:05]} 32. Kf3 {[%emt 0:00:44]} Kg7 {[%emt 0:00:21]} 33. Ke4 {[%emt 0:00:12]} Rb7 {[%emt 0:00:30]} 34. Kd5 {[%emt 0:00:48]} Rc7 {[%emt 0:00:23]} 35. g4 {[%emt 0:00:26]} Kf6 {[%emt 0:00:11]} 36. f4 {[%emt 0:00:15]} h6 37. Rf1 1-0

[Event "35th European Club Cup 2019"]
[Site "Ulcinj"]
[Date "2019.11.15"]
[Round "6.10"]
[White "Petursson, Margeir"]
[Black "Miljkovic, Miroslav D"]
[Result "1-0"]
[ECO "A21"]
[WhiteElo "2464"]
[BlackElo "2496"]
[Annotator "RC"]
[PlyCount "123"]
[EventDate "2019.11.10"]
[EventType "team-tourn"]
[EventCountry "MNE"]
[SourceTitle "playchess.com"]
[Source "ChessBase"]
[SourceQuality "1"]
[WhiteTeam "Reykjavik CC"]
[BlackTeam "Sloven Ruma"]
[TimeControl "40/5400+30:1800+30"]

1. c4 {[%emt 0:00:00]} e5 {[%emt 0:01:26]} 2. Nc3 {[%emt 0:00:00]} f5 {[%emt 0:02:53]} 3. d4 exd4 {[%emt 0:00:30]} 4. Qxd4 {[%emt 0:01:16]} Nc6 {[%emt 0:02:36]} 5. Qe3+ {[%emt 0:04:51]} Nce7 {[%emt 0:08:59]} 6. Nf3 {[%emt 0:20:20]} Nf6 {[%emt 0:02:12]} 7. g3 {[%emt 0:06:42]} Ng4 {[%emt 0:14:17]} 8. Qd2 {[%emt 0:04:00]} g6 {[%emt 0:01:50]} 9. Qd4 {[%emt 0:07:15]} Rg8 {[%emt 0:00:33]} 10. Bg2 {[%emt 0:00:58]} Bg7 {[%emt 0:07:19]} 11. Qd2 {[%emt 0:01:53]} d6 {[%emt 0:08:20]} 12. O-O {[%emt 0:04:27]} c6 {[%emt 0:07:46]} 13. Rd1 {[%emt 0:05:56]} Be6 {[%emt 0:05:35]} 14. b3 {[%emt 0:03:25]} Qd7 {[%emt 0:08:40]} 15. Ba3 {[%emt 0:04:08]} O-O-O {[%emt 0:00:30]} 16. Rac1 {[%emt 0:00:30]} d5 {[%emt 0:05:06]} 17. h3 {[%emt 0:08:53]} Nf6 {[%emt 0:03:44]} 18. Nb5 {[%emt 0:11:30]} Ne4 {[%emt 0:00:51]} 19. Qf4 {[%emt 0:02:28]} cxb5 {[%emt 0:03:27]} 20. cxb5+ {[%emt 0:01:58]} Nc6 {[%emt 0:01:36]} 21. Nd4 {[%emt 0:04:48]} g5 {[%emt 0:03:50]} 22. Qf3 {[%emt 0:00:26]} Bxd4 {[%emt 0:00:45]} 23. Rxd4 {[%emt 0:00:15]} Kb8 {[%emt 0:01:28]} 24. bxc6 {[%emt 0:00:17]} bxc6 {[%emt 0:00:02]} 25. Qd3 {[%emt 0:00:50]} Ka8 {[%emt 0:00:51]} 26. Qa6 {[%emt 0:01:11]} Rc8 {[%emt 0:00:55]} 27. Bc5 {[%emt 0:00:58]} Qb7 {[%emt 0:02:56]} 28. Qa3 {[%emt 0:00:18]} Nxc5 {[%emt 0:02:37]} 29. Rxc5 {[%emt 0:00:28]} Qe7 {[%emt 0:00:23]} 30. Ra4 {[%emt 0:01:15]} Rc7 {[%emt 0:00:05]} 31. Qc1 {[%emt 0:00:56]} Qd6 {[%emt 0:00:40]} 32. Rd4 {[%emt 0:01:11]} f4 {[%emt 0:00:36]} 33. Bxd5 {[%emt 0:00:40]} Bxd5 {[%emt 0:01:58]} 34. Rdxd5 {[%emt 0:00:08]} Qe6 {[%emt 0:00:25]} 35. g4 {[%emt 0:01:03]} Re8 {[%emt 0:00:57]} 36. Rxg5 {[%emt 0:01:08]} Qxe2 {[%emt 0:00:05]} 37. Qxf4 {[%emt 0:00:24]} Rd7 {[%emt 0:00:50]} 38. Rge5 {[%emt 0:00:58]} Rxe5 {[%emt 0:00:54]} 39. Rxe5 {[%emt 0:00:12]} Qd1+ {[%emt 0:00:25]} 40. Kg2 {[%emt 0:00:00]} a6 {[%emt 0:00:00]} 41. Re8+ {[%emt 0:05:06]} Rd8 {[%emt 0:00:38]} 42. Qe4 {[%emt 0:00:27]} Rxe8 {[%emt 0:02:37]} 43. Qxc6+ {[%emt 0:02:46]} Ka7 {[%emt 0:00:02]} 44. Qxe8 {[%emt 0:00:20]} Qd5+ {[%emt 0:00:08]} 45. Kg3 Qd6+ {[%emt 0:00:06]} 46. f4 {[%emt 0:00:47]} Qd3+ {[%emt 0:00:10]} 47. Kh4 {[%emt 0:00:26]} Qd2 {[%emt 0:00:10]} 48. Qe4 {[%emt 0:00:54]} Kb6 {[%emt 0:00:42]} 49. Qxh7 {[%emt 0:03:52]} Qxf4 {[%emt 0:00:22]} 50. Qg6+ {[%emt 0:01:38]} Kb7 {[%emt 0:00:37]} 51. Kh5 {[%emt 0:01:00]} Qh2 {[%emt 0:00:06]} 52. Qe4+ {[%emt 0:00:56]} Kb6 {[%emt 0:00:06]} 53. Qe3+ {[%emt 0:00:16]} Kc6 {[%emt 0:00:59]} 54. a4 {[%emt 0:00:32]} Qc2 {[%emt 0:00:45]} 55. h4 {[%emt 0:00:47]} a5 {[%emt 0:00:21]} 56. Kh6 {[%emt 0:00:44]} Kb7 {[%emt 0:01:39]} 57. g5 {[%emt 0:00:28]} Qc7 {[%emt 0:08:32]} 58. Qe4+ {[%emt 0:02:15]} Kb8 {[%emt 0:02:00]} 59. g6 {[%emt 0:00:44]} Qd6 {[%emt 0:01:04]} 60. h5 Ka7 {[%emt 0:02:10]} 61. Kh7 {[%emt 0:01:38]} Qc5 {[%emt 0:04:45]} 62. h6 {[%emt 0:00:35]} 1-0

[Event "35th European Club Cup 2019"]
[Site "Ulcinj"]
[Date "2019.11.15"]
[Round "6.11"]
[White "Laketic, Gojko"]
[Black "Johannesson, Ingvar Thor"]
[Result "1-0"]
[ECO "A46"]
[WhiteElo "2346"]
[BlackElo "2352"]
[Annotator "NA"]
[PlyCount "79"]
[EventDate "2019.11.10"]
[EventType "team-tourn"]
[EventCountry "MNE"]
[SourceTitle "playchess.com"]
[Source "ChessBase"]
[SourceQuality "1"]
[WhiteTeam "Sloven Ruma"]
[BlackTeam "Reykjavik CC"]
[TimeControl "40/5400+30:1800+30"]

1. d4 {[%emt 0:02:29]} Nf6 {[%emt 0:00:14]} 2. Nf3 {[%emt 0:00:29]} e6 {[%emt 0:02:48]} 3. c4 {[%emt 0:01:12]} c5 {[%emt 0:00:51]} 4. e3 {[%emt 0:01:57]} d5 {[%emt 0:11:23]} 5. Nc3 {[%emt 0:00:31]} Nc6 {[%emt 0:01:43]} 6. a3 {[%emt 0:00:44]} cxd4 {[%emt 0:11:04]} 7. exd4 {[%emt 0:01:54]} dxc4 {[%emt 0:00:20]} 8. Bxc4 {[%emt 0:00:35]} Be7 {[%emt 0:00:34]} 9. O-O {[%emt 0:01:24]} O-O {[%emt 0:26:12]} 10. Qd3 {[%emt 0:39:43]} Qa5 {[%emt 0:05:51]} 11. Bg5 {[%emt 0:02:39]} Rd8 {[%emt 0:06:48]} 12. b4 {[%emt 0:18:31]} Qc7 {[%emt 0:08:28]} 13. Nb5 {[%emt 0:06:01]} Qb8 {[%emt 0:00:22]} 14. g3 a6 {[%emt 0:00:05]} 15. Bf4 {[%emt 0:01:29]} axb5 {[%emt 0:00:04]} 16. Bxb8 {[%emt 0:00:41]} bxc4 {[%emt 0:06:06]} 17. Qxc4 {[%emt 0:09:13]} Nxb8 {[%emt 0:07:05]} 18. b5 Nbd7 19. Qb3 {[%emt 0:05:28]} Nd5 {[%emt 0:03:23]} 20. Rfc1 {[%emt 0:00:46]} b6 {[%emt 0:01:21]} 21. a4 {[%emt 0:01:14]} Bb7 {[%emt 0:00:12]} 22. Rc4 {[%emt 0:00:30]} Bd6 {[%emt 0:00:47]} 23. Rac1 {[%emt 0:00:08]} Rdc8 {[%emt 0:04:23]} 24. Rxc8+ {[%emt 0:00:35]} Rxc8 {[%emt 0:00:19]} 25. Rxc8+ {[%emt 0:00:41]} Bxc8 {[%emt 0:00:02]} 26. Nd2 {[%emt 0:00:48]} Bb7 {[%emt 0:01:00]} 27. Nc4 {[%emt 0:00:05]} Bb4 {[%emt 0:00:30]} 28. Ne3 {[%emt 0:01:43]} N7f6 {[%emt 0:00:26]} 29. Nc4 {[%emt 0:00:41]} Nd7 {[%emt 0:00:20]} 30. Ne3 {[%emt 0:00:26]} Ba5 {[%emt 0:01:34]} 31. Nc4 {[%emt 0:00:36]} g6 {[%emt 0:00:40]} 32. Nd6 {[%emt 0:00:14]} Ba8 {[%emt 0:00:13]} 33. Qc4 {[%emt 0:00:03]} Bb4 {[%emt 0:00:49]} 34. Qc8+ {[%emt 0:00:06]} Nf8 {[%emt 0:00:01]} 35. Nc4 {[%emt 0:00:41]} Bc3 {[%emt 0:00:29]} 36. Qxa8 {[%emt 0:00:18]} Bxd4 {[%emt 0:00:03]} 37. Qa7 {[%emt 0:01:27]} Nf6 {[%emt 0:00:40]} 38. a5 {[%emt 0:00:39]} Ne4 {[%emt 0:00:36]} 39. a6 {[%emt 0:00:29]} Nxf2 {[%emt 0:00:18]} 40. Kg2 {[%emt 0:00:00]} 1-0

[Event "35th European Club Cup 2019"]
[Site "Ulcinj"]
[Date "2019.11.15"]
[Round "6.11"]
[White "Buzeti, Jernej"]
[Black "Rozentalis, Eduardas"]
[Result "1/2-1/2"]
[ECO "B12"]
[WhiteElo "2211"]
[BlackElo "2547"]
[Annotator "ChessBase"]
[PlyCount "69"]
[EventDate "2019.11.10"]
[EventType "team-tourn"]
[EventCountry "MNE"]
[SourceTitle "playchess.com"]
[Source "ChessBase"]
[SourceQuality "1"]
[WhiteTeam "Maribor"]
[BlackTeam "Koge SK"]
[TimeControl "40/5400+30:1800+30"]

1. e4 {[%emt 0:00:00]} c6 {[%emt 0:00:00]} 2. d4 {[%emt 0:00:00]} d5 {[%emt 0:00:00]} 3. Nd2 {[%emt 0:00:31]} Qc7 {[%emt 0:00:23]} 4. Bd3 {[%emt 0:03:41]} dxe4 {[%emt 0:00:57]} 5. Nxe4 {[%emt 0:00:22]} Bf5 {[%emt 0:00:09]} 6. Ng3 {[%emt 0:05:20]} Bxd3 {[%emt 0:01:37]} 7. Qxd3 {[%emt 0:00:05]} e6 {[%emt 0:00:41]} 8. Nf3 {[%emt 0:00:53]} Nd7 {[%emt 0:00:25]} 9. Bd2 {[%emt 0:00:58]} Ngf6 {[%emt 0:01:06]} 10. O-O-O {[%emt 0:03:04]} O-O-O {[%emt 0:01:13]} 11. Kb1 {[%emt 0:09:33]} c5 {[%emt 0:08:46]} 12. dxc5 {[%emt 0:12:28]} Bxc5 {[%emt 0:02:11]} 13. Qe2 {[%emt 0:07:03]} h6 {[%emt 0:08:33]} 14. Bc3 {[%emt 0:02:28]} Rhg8 {[%emt 0:02:41]} 15. Bd4 {[%emt 0:03:43]} Kb8 {[%emt 0:06:02]} 16. Ne4 {[%emt 0:02:50]} Nxe4 {[%emt 0:02:53]} 17. Qxe4 {[%emt 0:00:10]} Nf6 {[%emt 0:00:24]} 18. Qe2 {[%emt 0:00:40]} Bxd4 {[%emt 0:02:09]} 19. Nxd4 {[%emt 0:00:40]} a6 {[%emt 0:02:44]} 20. Nf3 {[%emt 0:04:18]} Nd5 {[%emt 0:04:12]} 21. g3 {[%emt 0:05:40]} Nb4 {[%emt 0:12:01]} 22. a3 {[%emt 0:03:12]} Nc6 {[%emt 0:00:46]} 23. Rxd8+ {[%emt 0:04:14]} Rxd8 {[%emt 0:01:05]} 24. Rd1 {[%emt 0:00:37]} Rxd1+ {[%emt 0:02:03]} 25. Qxd1 {[%emt 0:00:06]} g5 {[%emt 0:00:13]} 26. h4 {[%emt 0:11:26]} f6 {[%emt 0:10:56]} 27. hxg5 {[%emt 0:01:41]} fxg5 {[%emt 0:04:12]} 28. Nd4 {[%emt 0:07:26]} Nxd4 {[%emt 0:01:16]} 29. Qxd4 {[%emt 0:00:06]} e5 {[%emt 0:00:44]} 30. Qd5 {[%emt 0:01:19]} Qe7 {[%emt 0:01:51]} 31. g4 {[%emt 0:02:31]} e4 {[%emt 0:00:41]} 32. Qf5 {[%emt 0:00:33]} e3 {[%emt 0:05:58]} 33. fxe3 {[%emt 0:00:29]} Qxe3 {[%emt 0:00:07]} 34. Ka2 {[%emt 0:01:18]} Qf4 {[%emt 0:05:12]} 35. Qe6 {[%emt 0:01:36]} 1/2-1/2